bitfinex-derivatives/quotes_SOLF0:USTF0_20250117
["timestamp","ask_amount","ask_price","bid_price","bid_amount"]
[1737082836556,72.31556391,213.21,213.08,11.63518971]
[1737082838159,4.6927,213.15,213.08,11.63518971]
[1737082839061,72.31556391,213.21,213.11,4.6935]
[1737082839659,4.6923,213.17,213.11,4.6935]
[1737082840160,4.6924,213.16,213.11,4.6935]
[1737082842164,4.692,213.18,213.11,11.63518971]
[1737082842354,60.6803742,213.21,213.11,11.63518971]
[1737082842866,4.6917,213.19,213.14,4.6928]
[1737082845466,4.6917,213.19,213.14,12.13540113]
[1737082846758,7.44260113,213.2,213.12,7.44260113]
[1737082846965,7.44260113,213.18,213.1,7.44260113]
[1737082847663,7.44260113,213.2,213.14,7.44260113]
[1737082847867,7.44260113,213.2,213.12,7.44260113]
[1737082850366,4.6925,213.16,213.12,7.44260113]
[1737082853665,7.44260113,213.16,213.08,4.694]
[1737082853965,7.44260113,213.16,213.09,7.44260113]
[1737082854369,4.6931,213.13,213.09,7.44260113]
[1737082855668,4.6931,213.13,213.08,4.694]
[1737082855969,7.44260113,213.16,213.08,7.44260113]
[1737082857071,4.6931,213.13,213.08,12.13670113]
[1737082857973,4.6929,213.14,213.1,7.44260113]
[1737082858474,4.6931,213.13,213.1,7.44260113]
[1737082862471,7.44260113,213.18,213.1,7.44260113]
[1737082862670,7.44260113,213.12,213.05,7.44260113]
[1737082863072,4.6944,213.07,213.04,7.44260113]
[1737082863970,4.6941,213.09,213.04,7.44260113]
[1737082864178,4.6941,213.09,213.06,7.44260113]
[1737082864376,7.29570507,213.17,213.08,7.44260113]
[1737082864673,5.02,213.18,212.99,4.5348]
[1737082864674,12.46260113,213.18,213.1,7.44260113]
[1737082865076,4.6931,213.13,213.1,7.44260113]
[1737082867475,4.6922,213.15,213.1,7.44260113]
[1737082867671,7.29938474,213.17,213.1,7.44260113]
[1737082867873,12.46260113,213.18,213.1,7.44260113]
[1737082868072,7.44260113,213.22,213.14,7.44260113]
[1737082868277,7.44260113,213.22,213.15,7.44260113]
[1737082869375,7.30002043,213.2,213.15,7.44260113]
[1737082870078,4.692,213.16,213.15,7.44260113]
[1737082870272,7.30002043,213.2,213.15,7.44260113]
[1737082870475,7.30002043,213.2,213.17,7.44260113]
[1737082870672,4.3774,213.23,213.17,7.44260113]
[1737082871682,4.6919,213.17,213.15,7.44260113]
[1737082871884,7.44260113,213.22,213.15,7.44260113]
[1737082872276,4.692,213.16,213.15,7.44260113]
[1737082875383,4.6928,213.13,213.08,4.6935]
[1737082875884,4.6928,213.13,213.12,7.44260113]
[1737082877995,4.6924,213.15,213.12,7.44260113]
[1737082878292,4.6924,213.15,213.14,7.44260113]
[1737082881594,4.6917,213.18,213.14,7.44260113]
[1737082881798,12.76518191,213.2,213.18,7.44260113]
[1737082882093,7.29855538,213.2,213.18,7.44260113]
[1737082882293,7.29855538,213.2,213.16,7.44260113]
[1737082882594,7.29855538,213.2,213.14,7.44260113]
[1737082883090,14.74115651,213.2,213.14,7.44260113]
[1737082883286,4.6916,213.18,213.12,7.44260113]
[1737082883489,7.29855538,213.19,213.12,7.44260113]
[1737082883689,12.90705999,213.2,213.12,7.44260113]
[1737082883690,12.76301424,213.2,213.12,7.44260113]
[1737082884091,4.6926,213.13,213.12,7.44260113]
[1737082884599,14.74115651,213.19,213.12,7.44260113]
[1737082884798,7.44260113,213.19,213.12,7.44260113]
[1737082885194,4.6916,213.18,213.14,7.44260113]
[1737082885396,12.76301424,213.2,213.14,7.44260113]
[1737082887199,12.76301424,213.2,213.16,7.44260113]
[1737082887601,5.46445886,213.2,213.16,7.44260113]
[1737082887797,4.6918,213.17,213.16,7.44260113]
[1737082897209,2.80262774,213.24,213.16,7.44260113]
[1737082897506,4.6911,213.21,213.2,7.44260113]
[1737082898217,10.24522887,213.24,213.16,7.44260113]
[1737082898610,4.6918,213.17,213.16,7.44260113]
[1737082900414,7.2920141,213.24,213.16,7.44260113]
[1737082900615,7.44260113,213.27,213.2,7.44260113]
[1737082900912,4.6909,213.21,213.2,7.44260113]
[1737082901716,7.44260113,213.23,213.17,7.44260113]
[1737082902214,7.44260113,213.25,213.17,7.44260113]
[1737082902516,7.44260113,213.26,213.19,7.44260113]
[1737082903309,7.44260113,213.24,213.17,7.44260113]
[1737082903512,4.6913,213.2,213.17,7.44260113]
[1737082903711,4.6913,213.2,213.19,7.44260113]
[1737082905207,4.6914,213.19,213.17,7.44260113]
[1737082905608,7.44260113,213.24,213.12,4.6927]
[1737082905819,7.44260113,213.22,213.14,7.44260113]
[1737082906214,7.44260113,213.22,213.16,7.44260113]
[1737082906417,8.94370113,213.24,213.16,7.44260113]
[1737082906917,5.4572278,213.23,213.18,7.44260113]
[1737082907216,5.4572278,213.23,213.16,7.44260113]
[1737082907411,12.89982893,213.23,213.16,7.44260113]
[1737082907622,7.44260113,213.23,213.16,7.44260113]
[1737082908120,1.5011,213.24,213.16,7.44260113]
[1737082908716,4.6918,213.17,213.16,7.44260113]
[1737082910416,4.6914,213.19,213.16,7.44260113]
[1737082910617,4.6914,213.19,213.18,7.44260113]
[1737082911016,4.6919,213.17,213.16,7.44260113]
[1737082911319,8.94370113,213.24,213.07,4.567]
[1737082911620,8.94370113,213.24,213.15,7.44260113]
[1737082911809,4.6908,213.22,213.15,7.44260113]
[1737082912011,8.94370113,213.24,213.15,7.44260113]
[1737082912418,4.692,213.17,213.15,7.44260113]
[1737082913017,4.692,213.16,213.15,7.44260113]
[1737082913412,7.44260113,213.2,213.13,7.44260113]
[1737082913617,4.6928,213.13,213.12,7.44260113]
[1737082913821,7.44260113,213.14,213.03,6.49790193]
[1737082914023,7.44260113,213.14,213.06,7.44260113]
[1737082914215,7.44260113,213.12,213.06,7.44260113]
[1737082914618,7.44260113,213.12,213.04,7.44260113]
[1737082915415,4.6939,213.08,213.06,7.44260113]
[1737082916618,4.694,213.07,213.06,7.44260113]
[1737082916920,7.44260113,213.1,213.0,1.4984]
[1737082917122,7.44260113,213.08,213.01,7.44260113]
[1737082917322,7.44260113,213.09,213.01,7.44260113]
[1737082918221,4.6947,213.04,213.01,7.44260113]
[1737082919026,4.6947,213.04,212.98,4.6959]
[1737082919325,4.6947,213.04,213.02,7.44260113]
[1737082920325,1.5616,213.11,213.02,7.44260113]
[1737082920525,1.5616,213.11,213.08,7.44260113]
[1737082921125,1.4328,213.16,213.1,7.44260113]
[1737082921327,1.4328,213.16,212.98,3.93236867]
[1737082921525,1.4328,213.16,213.12,7.44260113]
[1737082921821,4.6926,213.13,213.12,7.44260113]
[1737082922028,1.5393,213.18,213.12,7.44260113]
[1737082922423,4.6926,213.14,213.09,4.6935]
[1737082922629,4.6926,213.14,213.13,7.44260113]
[1737082924028,8.98190113,213.18,213.09,7.44260113]
[1737082924236,7.44260113,213.16,213.08,7.44260113]
[1737082924935,7.44260113,213.12,213.04,7.44260113]
[1737082925229,1.5393,213.18,213.04,7.44260113]
[1737082925230,7.44260113,213.1,213.04,7.44260113]
[1737082925534,7.44260113,213.1,212.98,1.4598]
[1737082925535,7.44260113,213.1,213.02,7.44260113]
[1737082926330,4.6948,213.04,213.02,7.44260113]
[1737082926525,7.44260113,213.1,213.02,7.44260113]
[1737082926930,4.6946,213.04,213.02,7.44260113]
[1737082927131,7.44260113,213.1,213.02,7.44260113]
[1737082927341,7.44260113,213.1,213.04,7.44260113]
[1737082927633,4.6944,213.05,213.04,7.44260113]
[1737082927834,7.44260113,213.1,213.02,7.44260113]
[1737082928436,4.6948,213.03,213.02,7.44260113]
[1737082929337,7.44260113,213.1,213.02,7.44260113]
[1737082929541,7.44260113,213.1,213.04,7.44260113]
[1737082930340,7.44260113,213.12,213.06,7.44260113]
[1737082931438,4.694,213.07,213.06,7.44260113]
[1737082931638,7.44260113,213.14,213.06,7.44260113]
[1737082932240,4.6937,213.08,213.06,7.44260113]
[1737082932630,7.44260113,213.12,212.98,1.4598]
[1737082932830,4.6944,213.06,213.04,7.44260113]
[1737082933139,7.44260113,213.12,213.04,7.44260113]
[1737082933340,7.44260113,213.14,213.08,7.44260113]
[1737082934141,4.6937,213.09,213.08,7.44260113]
[1737082935042,4.6933,213.11,213.08,7.44260113]
[1737082935237,1.5629,213.15,213.08,7.44260113]
[1737082936139,4.6934,213.1,213.08,7.44260113]
[1737082936835,4.6935,213.09,213.08,7.44260113]
[1737082943545,4.6935,213.09,213.04,4.6946]
[1737082943741,4.6935,213.09,213.08,7.44260113]
[1737082945951,4.694,213.07,212.98,1.4598]
[1737082946150,1.5629,213.15,213.06,7.44260113]
[1737082946353,1.5629,213.15,213.09,7.44260113]
[1737082946646,9.00550113,213.15,213.09,7.44260113]
[1737082947249,4.6938,213.08,213.07,7.44260113]
[1737082949554,4.6942,213.06,213.05,7.44260113]
[1737082950754,4.6946,213.04,213.03,7.44260113]
[1737082951352,7.44260113,213.12,213.03,7.44260113]
[1737082951656,4.6941,213.07,213.02,4.6949]
[1737082953055,4.6941,213.07,213.05,7.44260113]
[1737082959062,4.6941,213.07,213.02,4.6949]
[1737082959363,4.6941,213.07,213.06,7.44260113]
[1737082962072,7.44260113,213.1,212.98,1.4598]
[1737082962360,7.44260113,213.1,213.03,7.44260113]
[1737082963264,4.6947,213.04,213.03,7.44260113]
[1737082965063,4.6947,213.04,213.01,7.44260113]
[1737082965562,7.44260113,213.1,213.01,7.44260113]
[1737082965860,4.6951,213.02,212.99,7.44260113]
[1737082966668,4.6956,213.0,212.98,7.44260113]
[1737082967571,4.6957,212.99,212.98,7.44260113]
[1737082968067,7.44260113,213.02,212.95,5.2707919]
[1737082968267,7.44260113,213.0,212.95,5.2707919]
[1737082968474,7.44260113,213.02,212.95,12.71339303]
[1737082970071,4.6955,213.0,212.95,12.71339303]
[1737082970272,7.44260113,213.02,212.95,12.71339303]
[1737082972067,4.6964,212.97,212.95,12.71339303]
[1737082972473,4.6964,212.97,212.95,5.2707919]
[1737082973068,4.6964,212.96,212.95,5.2707919]
[1737082973673,7.44260113,212.98,212.87,1.5782]
[1737082973873,4.6971,212.93,212.91,7.44260113]
[1737082974074,7.44260113,212.98,212.85,5.27346111]
[1737082974275,7.44260113,212.98,212.9,7.44260113]
[1737082974675,7.44260113,212.96,212.9,7.44260113]
[1737082975173,4.6973,212.92,212.9,7.44260113]
[1737082975473,7.44260113,212.98,212.9,7.44260113]
[1737082975667,1.4264,213.0,212.95,7.44260113]
[1737082975873,1.5513,213.01,212.99,7.44260113]
[1737082976178,1.4761,213.09,212.99,12.13830113]
[1737082976477,1.4761,213.09,213.04,7.44260113]
[1737082977071,4.6947,213.04,213.02,7.44260113]
[1737082978076,4.6947,213.04,212.99,4.6957]
[1737082978276,4.6947,213.04,213.03,7.44260113]
[1737082982975,8.86900113,213.1,213.03,7.44260113]
[1737082982976,1.4264,213.1,213.03,7.44260113]
[1737082983183,1.4264,213.1,213.07,7.44260113]
[1737082984684,2.80467673,213.11,213.07,7.44260113]
[1737082985283,4.6937,213.08,213.07,7.44260113]
[1737082985481,2.80467673,213.11,213.05,7.44260113]
[1737082985981,4.694,213.07,213.05,7.44260113]
[1737082986381,7.44260113,213.1,213.03,7.44260113]
[1737082988284,4.6946,213.04,213.03,7.44260113]
[1737082988477,10.24727786,213.11,213.03,7.44260113]
[1737082990184,4.6945,213.05,213.03,7.44260113]
[1737082992681,2.80467673,213.11,213.03,7.44260113]
[1737082992886,2.80467673,213.11,212.97,2.9394]
[1737082992887,2.80467673,213.11,213.07,7.44260113]
[1737082993286,1.4474,213.14,213.07,7.44260113]
[1737082993681,4.6937,213.09,213.07,7.44260113]
[1737082994387,4.6937,213.08,213.07,7.44260113]
[1737082999195,4.6936,213.09,213.07,7.44260113]
[1737082999388,4.6936,213.09,213.08,7.44260113]
[1737083002393,7.44260113,213.13,213.06,7.44260113]
[1737083002594,7.44260113,213.11,213.04,7.44260113]
[1737083002793,1.4474,213.14,213.06,7.44260113]
[1737083002993,4.6931,213.11,213.08,7.44260113]
[1737083003192,1.4474,213.14,213.08,7.44260113]
[1737083004195,4.6935,213.09,213.08,7.44260113]
[1737083004587,1.4474,213.14,213.08,7.44260113]
[1737083004792,7.44260113,213.2,213.13,7.44260113]
[1737083005792,7.44260113,213.18,213.09,7.44260113]
[1737083005993,7.44260113,213.16,213.05,1.569]
[1737083006198,7.44260113,213.16,213.08,7.44260113]
[1737083006399,4.6933,213.1,213.08,7.44260113]
[1737083006697,7.44260113,213.14,213.05,7.44260113]
[1737083008093,4.6938,213.08,213.05,7.44260113]
[1737083009191,4.6942,213.06,213.05,7.44260113]
[1737083009395,7.44260113,213.14,213.05,7.44260113]
[1737083009595,7.44260113,213.14,213.07,7.44260113]
[1737083012197,4.6937,213.08,213.07,7.44260113]
[1737083013199,4.6937,213.08,212.98,1.569]
[1737083013200,4.6942,213.06,213.05,7.44260113]
[1737083014091,4.6944,213.05,213.04,7.44260113]
[1737083015796,4.695,213.03,212.98,6.2649]
[1737083016103,4.695,213.03,213.01,7.44260113]
[1737083016594,7.44260113,213.08,213.01,7.44260113]
[1737083016801,7.44260113,213.08,212.99,7.44260113]
[1737083017002,8.77820866,213.13,212.99,7.44260113]
[1737083017003,7.26860866,213.12,212.99,7.44260113]
[1737083017193,4.6959,212.98,212.97,7.44260113]
[1737083017997,7.44260113,213.02,212.95,7.44260113]
[1737083018195,4.6968,212.95,212.9,6.1319]
[1737083018396,4.6968,212.95,212.93,7.44260113]
[1737083019000,7.44260113,213.02,212.93,7.44260113]
[1737083019206,4.6964,212.97,212.95,7.44260113]
[1737083019502,7.44260113,213.02,212.95,7.44260113]
[1737083021106,4.6964,212.96,212.95,7.44260113]
[1737083021505,4.6964,212.96,212.93,7.44260113]
[1737083022112,7.44260113,213.0,212.8,26.16632838]
[1737083022407,4.6968,212.94,212.88,4.698]
[1737083022607,7.44260113,213.0,212.93,7.44260113]
[1737083023008,7.44260113,213.03,212.96,7.44260113]
[1737083023308,7.44260113,213.01,212.94,7.44260113]
[1737083024202,7.44260113,213.03,212.96,7.44260113]
[1737083026098,4.6962,212.97,212.96,7.44260113]
[1737083026904,4.6962,212.97,212.85,1.5125]
[1737083027113,7.44260113,213.01,212.93,7.44260113]
[1737083028210,4.6968,212.94,212.93,7.44260113]
[1737083029315,4.6968,212.94,212.91,7.44260113]
[1737083029710,4.697,212.93,212.91,7.44260113]
[1737083029910,7.44260113,212.98,212.91,7.44260113]
[1737083031010,7.44260113,213.0,212.93,7.44260113]
[1737083032216,4.6968,212.94,212.93,7.44260113]
[1737083038715,7.44260113,213.0,212.93,7.44260113]
[1737083038914,4.6966,212.96,212.85,1.5125]
[1737083039216,5.02,213.01,212.85,1.5125]
[1737083039411,4.6969,212.94,212.9,4.6976]
[1737083039621,5.02,213.04,212.85,1.5125]
[1737083040514,7.44260113,212.98,212.92,7.44260113]
[1737083041518,7.44260113,212.98,212.9,7.44260113]
[1737083041720,7.44260113,212.96,212.85,1.5125]
[1737083041919,7.44260113,212.96,212.88,7.44260113]
[1737083042121,4.6979,212.9,212.88,7.44260113]
[1737083044621,4.6975,212.91,212.88,7.44260113]
[1737083044825,7.44260113,213.0,212.9,7.44260113]
[1737083045026,7.44260113,213.0,212.93,7.44260113]
[1737083047128,5.0,213.04,212.93,7.44260113]
[1737083047428,7.44260113,213.0,212.93,7.44260113]
[1737083048128,4.6967,212.95,212.93,7.44260113]
[1737083056030,7.44260113,212.98,212.92,7.44260113]
[1737083056528,4.6975,212.91,212.9,7.44260113]
[1737083059230,4.6975,212.91,212.88,7.44260113]
[1737083059427,4.6978,212.9,212.88,7.44260113]
[1737083060232,4.6979,212.89,212.88,7.44260113]
[1737083061835,4.6979,212.89,212.88,11.38791132]
[1737083062134,7.44260113,212.97,212.88,11.38791132]
[1737083062335,1.5723,212.96,212.88,7.44260113]
[1737083062534,7.44260113,212.95,212.88,7.44260113]
[1737083063639,4.6979,212.89,212.84,26.16632838]
[1737083063839,4.6979,212.89,212.87,7.44260113]
[1737083064035,4.6979,212.89,212.88,3.94757854]
[1737083064338,4.6977,212.91,212.88,3.94757854]
[1737083064537,7.44260113,212.95,212.89,7.44260113]
[1737083064941,7.44260113,212.95,212.87,7.44260113]
[1737083066037,4.6981,212.88,212.87,7.44260113]
[1737083066838,4.6984,212.87,212.85,7.44260113]
[1737083069145,4.6984,212.87,212.81,8.19120741]
[1737083069346,4.6986,212.86,212.84,7.44260113]
[1737083069547,7.44260113,212.91,212.85,3.94569403]
[1737083069746,7.44260113,212.91,212.84,7.44260113]
[1737083070749,7.44260113,212.93,212.86,7.44260113]
[1737083070946,10.32180113,212.95,212.88,7.44260113]
[1737083071546,4.6981,212.89,212.88,7.44260113]
[1737083073148,4.6977,212.91,212.88,7.44260113]
[1737083073352,10.32180113,212.95,212.85,4.6988]
[1737083073546,10.32180113,212.95,212.87,7.44260113]
[1737083073750,4.698,212.89,212.87,7.44260113]
[1737083073950,4.698,212.89,212.85,12.14140113]
[1737083074452,4.698,212.89,212.85,7.44260113]
[1737083076555,7.44260113,212.93,212.85,7.44260113]
[1737083076853,4.6984,212.87,212.85,7.44260113]
[1737083077245,4.6984,212.87,212.83,4.6992]
[1737083077449,4.6984,212.87,212.86,7.44260113]
[1737083077746,4.6984,212.87,212.84,7.44260113]
[1737083079148,4.6991,212.84,212.81,5.20840741]
[1737083079451,7.44260113,212.89,212.82,7.44260113]
[1737083079855,4.6988,212.85,212.82,7.44260113]
[1737083080050,7.44260113,212.93,212.84,7.44260113]
[1737083080254,10.32180113,212.95,212.88,7.44260113]
[1737083080651,10.32180113,212.95,212.9,7.44260113]
[1737083080652,4.6975,212.91,212.9,7.44260113]
[1737083081154,4.6975,212.91,212.81,5.20840741]
[1737083081351,4.6977,212.9,212.89,7.44260113]
[1737083083851,4.6977,212.9,212.87,7.44260113]
[1737083085355,7.44260113,212.94,212.87,7.44260113]
[1737083085655,4.6979,212.89,212.87,7.44260113]
[1737083086354,4.6977,212.9,212.87,7.44260113]
[1737083086654,2.8792,212.95,212.89,7.44260113]
[1737083086951,1.5723,212.96,212.91,7.44260113]
[1737083088156,4.6972,212.93,212.91,7.44260113]
[1737083089150,7.44260113,212.99,212.91,7.44260113]
[1737083089351,1.5156,213.04,212.98,7.44260113]
[1737083089554,1.5156,213.04,213.0,7.44260113]
[1737083090756,4.6954,213.01,213.0,7.44260113]
[1737083091057,8.95820113,213.04,212.94,4.6966]
[1737083091253,7.44260113,213.02,212.95,7.44260113]
[1737083092159,4.6964,212.96,212.95,7.44260113]
[1737083093157,8.95820113,213.04,212.95,7.44260113]
[1737083093350,8.95820113,213.04,212.98,7.44260113]
[1737083095253,4.6957,213.0,212.98,7.44260113]
[1737083096156,4.6957,212.99,212.98,7.44260113]
[1737083102369,4.695,213.03,212.98,7.44260113]
[1737083102566,4.695,213.03,213.02,7.44260113]
[1737083108073,4.6953,213.01,213.0,7.44260113]
[1737083109973,4.6953,213.01,212.97,4.6961]
[1737083110171,4.6953,213.01,213.0,7.44260113]
[1737083112174,7.44260113,213.04,212.91,3.071]
[1737083112371,4.6962,212.97,212.95,7.44260113]
[1737083112572,7.44260113,213.02,212.95,7.44260113]
[1737083112874,4.6959,212.99,212.97,7.44260113]
[1737083113875,7.44260113,213.0,212.93,7.44260113]
[1737083114076,7.44260113,212.98,212.91,7.44260113]
[1737083114978,4.6969,212.94,212.89,4.6979]
[1737083115179,7.44260113,212.96,212.89,7.44260113]
[1737083115578,4.6975,212.91,212.87,7.44260113]
[1737083116782,7.44260113,212.92,212.81,5.20840741]
[1737083116970,7.44260113,212.92,212.85,7.44260113]
[1737083118077,4.6982,212.88,212.85,7.44260113]
[1737083119582,4.6986,212.87,212.85,7.44260113]
[1737083119771,4.6986,212.87,212.83,7.44260113]
[1737083122785,4.6987,212.86,212.83,7.44260113]
[1737083124887,7.44260113,212.9,212.83,7.44260113]
[1737083125090,4.6984,212.87,212.83,7.44260113]
[1737083125388,4.6984,212.87,212.82,12.14200113]
[1737083125992,4.6984,212.87,212.84,7.44260113]
[1737083126984,7.44260113,212.9,212.82,7.44260113]
[1737083127487,4.6985,212.87,212.84,7.44260113]
[1737083127682,7.44260113,212.92,212.84,7.44260113]
[1737083128083,4.6984,212.87,212.84,7.44260113]
[1737083128288,7.44260113,212.9,212.82,7.44260113]
[1737083128887,4.6987,212.86,212.82,7.44260113]
[1737083129088,7.44260113,212.9,212.82,7.44260113]
[1737083129287,12.14050113,212.9,212.84,12.14160113]
[1737083129489,4.6979,212.9,212.86,7.44260113]
[1737083129692,7.44260113,212.92,212.86,7.44260113]
[1737083129991,7.44260113,212.92,212.84,12.14160113]
[1737083131189,4.698,212.89,212.86,7.44260113]
[1737083132888,4.6977,212.9,212.88,7.44260113]
[1737083134794,7.44260113,212.94,212.88,7.44260113]
[1737083134983,4.6979,212.89,212.86,7.44260113]
[1737083139493,4.6984,212.87,212.84,7.44260113]
[1737083140196,4.6986,212.86,212.82,7.44260113]
[1737083143397,4.6986,212.86,212.81,9.90810741]
[1737083143595,4.6986,212.86,212.83,7.44260113]
[1737083146295,4.699,212.85,212.83,7.44260113]
[1737083146495,7.44260113,212.88,212.81,7.44260113]
[1737083146691,7.44260113,212.88,212.72,44.04823635]
[1737083146892,4.6993,212.83,212.8,7.44260113]
[1737083152202,7.44260113,212.88,212.8,7.44260113]
[1737083152401,7.44260113,212.88,212.82,7.44260113]
[1737083152596,4.5254,212.96,212.86,7.44260113]
[1737083152801,4.6979,212.9,212.86,7.44260113]
[1737083153007,4.5254,212.96,212.86,7.44260113]
[1737083153198,7.44260113,212.92,212.86,7.44260113]
[1737083153904,7.44260113,212.92,212.85,7.44260113]
[1737083154201,7.44260113,212.9,212.83,7.44260113]
[1737083155001,4.6989,212.85,212.83,7.44260113]
[1737083155497,4.6989,212.85,212.8,12.14230113]
[1737083156002,4.6989,212.85,212.82,7.44260113]
[1737083156803,4.6989,212.85,212.84,7.44260113]
[1737083159507,4.6981,212.89,212.84,12.14160113]
[1737083159706,4.6981,212.89,212.87,7.44260113]
[1737083160302,4.6971,212.93,212.87,7.44260113]
[1737083160618,4.5254,212.96,212.91,7.44260113]
[1737083161303,7.44260113,212.95,212.87,7.44260113]
[1737083161605,7.44260113,212.93,212.85,7.44260113]
[1737083162507,7.44260113,212.91,212.81,1.4725]
[1737083162704,7.44260113,212.91,212.84,7.44260113]
[1737083162904,4.6986,212.87,212.81,4.6995]
[1737083163104,7.44260113,212.91,212.81,4.6995]
[1737083163304,7.44260113,212.91,212.83,7.44260113]
[1737083163806,4.6988,212.85,212.83,7.44260113]
[1737083165005,4.6986,212.87,212.83,7.44260113]
[1737083165205,7.44260113,212.9,212.83,7.44260113]
[1737083165605,7.44260113,212.93,212.86,7.44260113]
[1737083166408,4.6984,212.87,212.86,7.44260113]
[1737083173312,7.44260113,212.93,212.86,7.44260113]
[1737083173516,7.44260113,212.95,212.88,7.44260113]
[1737083174215,4.5254,212.96,212.9,7.44260113]
[1737083174615,7.44260113,212.95,212.88,7.44260113]
[1737083175015,14.7769608,212.95,212.88,7.44260113]
[1737083175618,4.6979,212.89,212.88,7.44260113]
[1737083178523,4.699,212.85,212.77,6.54545833]
[1737083178722,4.699,212.85,212.84,7.44260113]
[1737083182115,7.44260113,212.91,212.82,7.44260113]
[1737083182315,4.6994,212.83,212.82,7.44260113]
[1737083182627,7.44260113,212.87,212.8,7.44260113]
[1737083183016,4.6998,212.81,212.8,7.44260113]
[1737083183325,7.44260113,212.85,212.77,7.44260113]
[1737083183526,4.7004,212.78,212.77,7.44260113]
[1737083183830,4.7004,212.78,212.77,11.39029609]
[1737083184226,4.7004,212.78,212.77,7.44260113]
[1737083186226,4.701,212.75,212.74,7.44260113]
[1737083191228,4.7012,212.74,212.73,7.44260113]
[1737083191833,4.7012,212.74,212.71,7.44260113]
[1737083193236,4.701,212.75,212.73,7.44260113]
[1737083194834,1.4568,212.8,212.73,7.44260113]
[1737083195035,1.4568,212.8,212.76,7.44260113]
[1737083196135,4.7002,212.79,212.76,7.44260113]
[1737083197135,4.7004,212.78,212.76,7.44260113]
[1737083203850,4.7,212.8,212.76,7.44260113]
[1737083204045,7.44260113,212.85,212.76,7.44260113]
[1737083204352,7.44260113,212.85,212.77,7.44260113]
[1737083205251,4.7002,212.79,212.77,7.44260113]
[1737083206647,4.6998,212.81,212.77,7.44260113]
[1737083207653,4.6999,212.8,212.77,7.44260113]
[1737083208751,4.7004,212.78,212.77,7.44260113]
[1737083210951,4.7004,212.78,212.75,7.44260113]
[1737083214461,4.7004,212.78,212.77,7.44260113]
[1737083217356,4.7004,212.78,212.75,7.44260113]
[1737083220363,4.7015,212.73,212.68,4.7025]
[1737083220562,7.44260113,212.79,212.71,7.44260113]
[1737083220766,7.44260113,212.82,212.74,7.44260113]
[1737083221455,7.44260113,212.8,212.67,3.93730734]
[1737083221662,7.44260113,212.8,212.73,7.44260113]
[1737083222869,4.7012,212.75,212.71,7.44260113]
[1737083223067,7.44260113,212.78,212.71,7.44260113]
[1737083223469,4.7015,212.73,212.71,7.44260113]
[1737083224468,4.7015,212.73,212.68,4.7024]
[1737083224668,4.7015,212.73,212.72,7.44260113]
[1737083225175,4.7008,212.76,212.72,7.44260113]
[1737083225470,7.44260113,212.83,212.75,7.44260113]
[1737083225670,4.7002,212.79,212.77,7.44260113]
[1737083226470,4.7004,212.78,212.77,7.44260113]
[1737083234377,1.5518,212.86,212.77,7.44260113]
[1737083234576,1.5518,212.86,212.84,7.44260113]
[1737083236076,4.6988,212.85,212.84,7.44260113]
[1737083237177,4.6992,212.83,212.82,7.44260113]
[1737083238179,7.44260113,212.84,212.71,1.5331]
[1737083238479,7.44260113,212.8,212.73,7.44260113]
[1737083238782,7.44260113,212.78,212.71,7.44260113]
[1737083239181,7.44260113,212.76,212.7,26.18183334]
[1737083239384,7.44260113,212.74,212.7,26.18183334]
[1737083239674,4.7023,212.69,212.66,7.44260113]
[1737083240277,4.7026,212.68,212.66,7.44260113]
[1737083241784,7.44260113,212.72,212.66,7.44260113]
[1737083241980,7.44260113,212.68,212.61,36.57881288]
[1737083242281,7.44260113,212.64,212.57,26.18183334]
[1737083242488,7.44260113,212.64,212.56,7.44260113]
[1737083242882,7.44260113,212.64,212.58,7.44260113]
[1737083244189,4.7045,212.6,212.58,7.44260113]
[1737083244587,7.44260113,212.64,212.58,7.44260113]
[1737083244783,4.7041,212.62,212.58,7.44260113]
[1737083245283,7.44260113,212.64,212.5,1.5835]
[1737083245478,7.44260113,212.62,212.55,7.44260113]
[1737083246685,4.7044,212.6,212.55,7.44260113]
[1737083246888,7.44260113,212.62,212.55,7.44260113]
[1737083248087,4.7048,212.58,212.55,7.44260113]
[1737083249188,4.7048,212.58,212.51,4.7063]
[1737083249386,4.7048,212.58,212.54,7.44260113]
[1737083249584,4.7059,212.53,212.47,4.7071]
[1737083249783,7.44260113,212.56,212.49,7.44260113]
[1737083250087,7.44260113,212.56,212.48,7.44260113]
[1737083251088,12.42260113,212.58,212.5,7.44260113]
[1737083251284,12.42260113,212.58,212.52,7.44260113]
[1737083251485,4.98,212.58,212.54,7.44260113]
[1737083253287,4.7051,212.57,212.54,7.44260113]